[Event "Titled Tuesday Blitz December 13 Early 2022"]
[White "Bongo Akanga Ndjila, Barthelemy"]
[Black "Johnson, Ben"]
[WhiteFideId "10609431"]
[BlackFideId "2010917"]
[WhiteElo "1768"]
[BlackElo "2195"]
[Result "0-1"]
[Round "08"]
[TimeControl "180+1"]
[Date "2022.12.14"]
[WhiteClock "0:00:13"]
[BlackClock "0:00:03"]

1. d4 {[%clk 0:02:50]}  Nf6 {[%clk 0:02:59]} 2. Nf3 {[%clk 0:02:48]}  d5 {[%clk 0:02:58]} 3. Bg5 {[%clk 0:02:48]}  c5 {[%clk 0:02:56]} 4. e3 {[%clk 0:02:48]}  Nc6 {[%clk 0:02:54]} 5. Nbd2 {[%clk 0:02:46]}  cxd4 {[%clk 0:02:47]} 6. exd4 {[%clk 0:02:44]}  Bg4 {[%clk 0:02:41]} 7. c3 {[%clk 0:02:44]}  e6 {[%clk 0:02:40]} 8. Bd3 {[%clk 0:02:44]}  Be7 {[%clk 0:02:37]} 9. O-O {[%clk 0:02:44]}  O-O {[%clk 0:02:37]} 10. a4 {[%clk 0:02:44]}  Rc8 {[%clk 0:02:22]} 11. Re1 {[%clk 0:02:41]}  Na5 {[%clk 0:02:06]} 12. Bxf6 {[%clk 0:02:23]}  Bxf6 {[%clk 0:02:03]} 13. b4 {[%clk 0:02:23]}  Nc4 {[%clk 0:02:02]} 14. Nxc4 {[%clk 0:02:10]}  dxc4 {[%clk 0:02:03]} 15. Be4 {[%clk 0:02:10]}  b6 {[%clk 0:01:56]} 16. h3 {[%clk 0:02:07]}  Bh5 {[%clk 0:01:56]} 17. Qe2 {[%clk 0:02:02]}  Bg6 {[%clk 0:01:48]} 18. Bxg6 {[%clk 0:02:00]}  hxg6 {[%clk 0:01:49]} 19. Qe4 {[%clk 0:01:51]}  Qd7 {[%clk 0:01:38]} 20. Qg4 {[%clk 0:01:47]}  Rfd8 {[%clk 0:01:32]} 21. h4 {[%clk 0:01:44]}  a5 {[%clk 0:01:26]} 22. b5 {[%clk 0:01:43]}  Qe7 {[%clk 0:01:21]} 23. h5 {[%clk 0:01:42]}  gxh5 {[%clk 0:01:20]} 24. Qxh5 {[%clk 0:01:42]}  Rd5 {[%clk 0:01:20]} 25. Ne5 {[%clk 0:01:40]}  Bxe5 {[%clk 0:01:11]} 26. Rxe5 {[%clk 0:01:38]}  Rxe5 {[%clk 0:01:03]} 27. Qxe5 {[%clk 0:01:36]}  f6 {[%clk 0:00:56]} 28. Qe4 {[%clk 0:01:33]}  Qd6 {[%clk 0:00:44]} 29. Re1 {[%clk 0:01:26]}  Kf7 {[%clk 0:00:37]} 30. Qb7+ {[%clk 0:01:06]}  Rc7 {[%clk 0:00:37]} 31. Qb8 {[%clk 0:01:06]}  Rd7 {[%clk 0:00:34]} 32. Qc8 {[%clk 0:01:00]}  Rd8 {[%clk 0:00:25]} 33. Qxc4 {[%clk 0:00:56]}  Rd7 {[%clk 0:00:19]} 34. Qd3 {[%clk 0:00:52]}  Qf4 {[%clk 0:00:12]} 35. g3 {[%clk 0:00:49]}  Qg4 {[%clk 0:00:11]} 36. Re3 {[%clk 0:00:40]}  Rc7 {[%clk 0:00:06]} 37. Kg2 {[%clk 0:00:39]}  Rd7 {[%clk 0:00:05]} 38. f3 {[%clk 0:00:37]}  Qg5 {[%clk 0:00:05]} 39. Qc4 {[%clk 0:00:37]}  Qd5 {[%clk 0:00:04]} 40. Qd3 {[%clk 0:00:35]}  Rc7 {[%clk 0:00:04]} 41. Qh7 {[%clk 0:00:33]}  Rc4 {[%clk 0:00:04]} 42. Qd3 {[%clk 0:00:25]}  Rxa4 {[%clk 0:00:04]} 43. c4 {[%clk 0:00:26]}  Qd6 {[%clk 0:00:03]} 44. Qc3 {[%clk 0:00:18]}  Rb4 {[%clk 0:00:03]} 45. c5 {[%clk 0:00:18]}  bxc5 {[%clk 0:00:03]} 46. dxc5 {[%clk 0:00:17]}  Qd5 {[%clk 0:00:03]} 47. b6 {[%clk 0:00:16]}  Rc4 {[%clk 0:00:03]} 48. Qb3 {[%clk 0:00:14]}  Qxc5 {[%clk 0:00:02]} 49. b7 {[%clk 0:00:14]}  Rc2+ {[%clk 0:00:03]} 50. Kh3 {[%clk 0:00:13]}  Qh5# {[%clk 0:00:03]} 0-1


[Site "https://www.chess.com"]

[Event "Titled Tuesday Blitz December 13 Early 2022"]
[White "Chernobay, Artem"]
[Black "Avinash, Ramesh"]
[WhiteFideId "4167406"]
[BlackFideId "45018340"]
[WhiteElo "2474"]
[BlackElo "2264"]
[Result "0-1"]
[Round "08"]
[TimeControl "180+1"]
[Date "2022.12.13"]
[WhiteClock "0:00:24"]
[BlackClock "0:01:03"]

1. e4 {[%clk 0:03:00]}  e6 {[%clk 0:02:58]} 2. d4 {[%clk 0:03:00]}  d5 {[%clk 0:02:59]} 3. Nc3 {[%clk 0:03:01]}  Nf6 {[%clk 0:03:00]} 4. Bg5 {[%clk 0:03:01]}  h6 {[%clk 0:02:58]} 5. Bxf6 {[%clk 0:03:00]}  Qxf6 {[%clk 0:02:59]} 6. exd5 {[%clk 0:03:00]}  Bb4 {[%clk 0:03:00]} 7. dxe6 {[%clk 0:02:56]}  Bxe6 {[%clk 0:02:59]} 8. Bb5+ {[%clk 0:02:40]}  c6 {[%clk 0:02:55]} 9. Be2 {[%clk 0:02:40]}  c5 {[%clk 0:02:51]} 10. Nf3 {[%clk 0:02:34]}  Nc6 {[%clk 0:02:51]} 11. O-O {[%clk 0:02:32]}  O-O-O {[%clk 0:02:48]} 12. a3 {[%clk 0:02:30]}  Bxc3 {[%clk 0:02:44]} 13. bxc3 {[%clk 0:02:29]}  cxd4 {[%clk 0:02:45]} 14. cxd4 {[%clk 0:02:06]}  Nxd4 {[%clk 0:02:44]} 15. Nxd4 {[%clk 0:02:07]}  Rxd4 {[%clk 0:02:43]} 16. Bd3 {[%clk 0:02:07]}  Rhd8 {[%clk 0:02:43]} 17. Rb1 {[%clk 0:02:03]}  Bc4 {[%clk 0:02:35]} 18. Qe2 {[%clk 0:01:48]}  Bxd3 {[%clk 0:02:25]} 19. cxd3 {[%clk 0:01:48]}  Rxd3 {[%clk 0:02:26]} 20. Rfc1+ {[%clk 0:01:24]}  Kb8 {[%clk 0:02:26]} 21. Qe4 {[%clk 0:01:23]}  b6 {[%clk 0:02:19]} 22. Qc4 {[%clk 0:01:06]}  Rd2 {[%clk 0:02:03]} 23. Kh1 {[%clk 0:00:48]}  Qd6 {[%clk 0:01:58]} 24. h3 {[%clk 0:00:42]}  Rxf2 {[%clk 0:01:54]} 25. a4 {[%clk 0:00:40]}  Rf4 {[%clk 0:01:49]} 26. Qa6 {[%clk 0:00:35]}  Rf2 {[%clk 0:01:41]} 27. a5 {[%clk 0:00:33]}  Qg6 {[%clk 0:01:39]} 28. Rg1 {[%clk 0:00:25]}  Rxg2 {[%clk 0:01:24]} 29. axb6 {[%clk 0:00:24]}  Rxg1+ {[%clk 0:01:15]} 30. Rxg1 {[%clk 0:00:25]}  Qe4+ {[%clk 0:01:16]} 31. Rg2 {[%clk 0:00:25]}  Rd1+ {[%clk 0:01:14]} 32. Kh2 {[%clk 0:00:26]}  Qe5+ {[%clk 0:01:03]} 33. Rg3 {[%clk 0:00:26]}  Rd2+ {[%clk 0:01:04]} 34. Kh1 {[%clk 0:00:24]}  Qe1+ {[%clk 0:01:03]} 0-1


[Site "https://www.chess.com"]

[Event "Titled Tuesday Blitz December 13 Early 2022"]
[White "Chernomordik, Pavel"]
[Black "Bodnaruk, Anastasia"]
[WhiteFideId "2804530"]
[BlackFideId "4181751"]
[WhiteElo "2193"]
[BlackElo "2314"]
[Result "0-1"]
[Round "08"]
[TimeControl "180+1"]
[Date "2022.12.14"]
[WhiteClock "0:00:01"]
[BlackClock "0:00:17"]

1. e4 {[%clk 0:03:00]}  c5 {[%clk 0:02:59]} 2. Nc3 {[%clk 0:03:00]}  d6 {[%clk 0:02:59]} 3. f4 {[%clk 0:02:59]}  g6 {[%clk 0:02:58]} 4. Nf3 {[%clk 0:02:58]}  Bg7 {[%clk 0:02:59]} 5. Bb5+ {[%clk 0:02:58]}  Bd7 {[%clk 0:02:57]} 6. Bxd7+ {[%clk 0:02:58]}  Qxd7 {[%clk 0:02:56]} 7. O-O {[%clk 0:02:57]}  Nc6 {[%clk 0:02:55]} 8. d3 {[%clk 0:02:57]}  e6 {[%clk 0:02:52]} 9. f5 {[%clk 0:02:47]}  Nf6 {[%clk 0:02:42]} 10. fxe6 {[%clk 0:02:42]}  fxe6 {[%clk 0:02:42]} 11. h3 {[%clk 0:02:38]}  O-O {[%clk 0:02:41]} 12. Qe1 {[%clk 0:02:34]}  Nd4 {[%clk 0:02:38]} 13. Nxd4 {[%clk 0:02:29]}  cxd4 {[%clk 0:02:38]} 14. Ne2 {[%clk 0:02:30]}  e5 {[%clk 0:02:37]} 15. c4 {[%clk 0:02:26]}  Nh5 {[%clk 0:02:25]} 16. Bd2 {[%clk 0:02:17]}  b5 {[%clk 0:02:17]} 17. b3 {[%clk 0:02:13]}  bxc4 {[%clk 0:02:17]} 18. bxc4 {[%clk 0:02:10]}  Rab8 {[%clk 0:02:13]} 19. Rb1 {[%clk 0:02:05]}  Qa4 {[%clk 0:01:38]} 20. Rxf8+ {[%clk 0:01:54]}  Rxf8 {[%clk 0:01:36]} 21. Bb4 {[%clk 0:01:52]}  Rd8 {[%clk 0:01:16]} 22. Qd1 {[%clk 0:01:41]}  Qd7 {[%clk 0:01:09]} 23. Ba5 {[%clk 0:01:38]}  Rf8 {[%clk 0:01:08]} 24. Qb3 {[%clk 0:01:30]}  Qf7 {[%clk 0:01:06]} 25. c5 {[%clk 0:01:09]}  dxc5 {[%clk 0:01:05]} 26. Qxf7+ {[%clk 0:01:07]}  Rxf7 {[%clk 0:01:05]} 27. Rb8+ {[%clk 0:01:03]}  Bf8 {[%clk 0:01:05]} 28. Rc8 {[%clk 0:00:54]}  Kg7 {[%clk 0:00:51]} 29. Bc7 {[%clk 0:00:52]}  Kf6 {[%clk 0:00:51]} 30. Bb8 {[%clk 0:00:37]}  Ke6 {[%clk 0:00:31]} 31. Re8+ {[%clk 0:00:26]}  Be7 {[%clk 0:00:29]} 32. Bxa7 {[%clk 0:00:23]}  Kd7 {[%clk 0:00:28]} 33. Ra8 {[%clk 0:00:22]}  c4 {[%clk 0:00:21]} 34. dxc4 {[%clk 0:00:19]}  d3 {[%clk 0:00:21]} 35. Nc3 {[%clk 0:00:19]}  Nf4 {[%clk 0:00:19]} 36. Be3 {[%clk 0:00:14]}  Ne2+ {[%clk 0:00:19]} 37. Nxe2 {[%clk 0:00:11]}  dxe2 {[%clk 0:00:19]} 38. Bd2 {[%clk 0:00:06]}  Rf1+ {[%clk 0:00:18]} 39. Kh2 {[%clk 0:00:06]}  e1=Q {[%clk 0:00:18]} 40. Bxe1 {[%clk 0:00:06]}  Rxe1 {[%clk 0:00:19]} 41. Ra7+ {[%clk 0:00:06]}  Ke6 {[%clk 0:00:19]} 42. c5 {[%clk 0:00:01]}  Bxc5 {[%clk 0:00:18]} 43. Rxh7 {[%clk 0:00:01]}  Ra1 {[%clk 0:00:17]} 0-1


[Site "https://www.chess.com"]

[Event "Titled Tuesday Blitz December 13 Early 2022"]
[White "Chernov, Mikhail"]
[Black "Ambartsumova, Karina"]
[WhiteFideId "24143170"]
[BlackFideId "4166299"]
[WhiteElo "2113"]
[BlackElo "2319"]
[Result "1-0"]
[Round "08"]
[TimeControl "180+1"]
[Date "2022.12.14"]
[WhiteClock "0:01:27"]
[BlackClock "0:00:06"]

1. e4 {[%clk 0:03:00]}  e5 {[%clk 0:02:54]} 2. Nc3 {[%clk 0:02:59]}  Nf6 {[%clk 0:02:53]} 3. Bc4 {[%clk 0:02:59]}  c6 {[%clk 0:02:51]} 4. d4 {[%clk 0:02:58]}  Qc7 {[%clk 0:00:49]} 5. dxe5 {[%clk 0:02:35]}  Qxe5 {[%clk 0:00:50]} 6. Nf3 {[%clk 0:02:35]}  Qc5 {[%clk 0:00:50]} 7. Qe2 {[%clk 0:02:30]}  b5 {[%clk 0:00:43]} 8. Bb3 {[%clk 0:02:25]}  Be7 {[%clk 0:00:32]} 9. e5 {[%clk 0:02:07]}  Nd5 {[%clk 0:00:26]} 10. Ne4 {[%clk 0:01:46]}  Qb6 {[%clk 0:00:19]} 11. Nd6+ {[%clk 0:01:44]}  Bxd6 {[%clk 0:00:05]} 12. exd6+ {[%clk 0:01:44]}  Kd8 {[%clk 0:00:06]} 13. Ng5 {[%clk 0:01:27]} 1-0


[Site "https://www.chess.com"]

[Event "Titled Tuesday Blitz December 13 Early 2022"]
[White "Cruz, William Ferreira Da"]
[Black "Lewtak, Damian"]
[WhiteFideId "2118050"]
[BlackFideId "1141724"]
[WhiteElo "2223"]
[BlackElo "2330"]
[Result "0-1"]
[Round "08"]
[TimeControl "180+1"]
[Date "2022.12.14"]
[WhiteClock "0:00:10"]
[BlackClock "0:00:32"]

1. d4 {[%clk 0:02:56]}  g6 {[%clk 0:02:57]} 2. c4 {[%clk 0:02:56]}  Bg7 {[%clk 0:02:58]} 3. Nc3 {[%clk 0:02:56]}  d6 {[%clk 0:02:58]} 4. Nf3 {[%clk 0:02:55]}  e5 {[%clk 0:02:58]} 5. dxe5 {[%clk 0:02:51]}  dxe5 {[%clk 0:02:59]} 6. Qxd8+ {[%clk 0:02:50]}  Kxd8 {[%clk 0:02:58]} 7. e3 {[%clk 0:02:44]}  f6 {[%clk 0:02:54]} 8. Be2 {[%clk 0:02:45]}  c6 {[%clk 0:02:54]} 9. b3 {[%clk 0:02:45]}  Be6 {[%clk 0:02:54]} 10. Bb2 {[%clk 0:02:45]}  Nd7 {[%clk 0:02:55]} 11. O-O {[%clk 0:02:41]}  Kc7 {[%clk 0:02:54]} 12. Rfd1 {[%clk 0:02:41]}  Bf8 {[%clk 0:02:34]} 13. Ne4 {[%clk 0:02:26]}  Be7 {[%clk 0:02:18]} 14. h3 {[%clk 0:02:23]}  Nh6 {[%clk 0:02:16]} 15. Kf1 {[%clk 0:02:03]}  Nf7 {[%clk 0:02:15]} 16. Nc3 {[%clk 0:01:44]}  a5 {[%clk 0:02:10]} 17. Rd2 {[%clk 0:01:41]}  Rad8 {[%clk 0:02:01]} 18. Rad1 {[%clk 0:01:41]}  Nb6 {[%clk 0:01:54]} 19. Rxd8 {[%clk 0:01:39]}  Nxd8 {[%clk 0:01:49]} 20. Ne4 {[%clk 0:01:35]}  Nf7 {[%clk 0:01:48]} 21. Bc3 {[%clk 0:01:27]}  Ra8 {[%clk 0:01:44]} 22. a4 {[%clk 0:01:22]}  Nd7 {[%clk 0:01:36]} 23. Ke1 {[%clk 0:01:20]}  b6 {[%clk 0:01:36]} 24. Bb2 {[%clk 0:01:17]}  Nd6 {[%clk 0:01:28]} 25. Nxd6 {[%clk 0:01:16]}  Bxd6 {[%clk 0:01:28]} 26. Nd2 {[%clk 0:01:16]}  Nc5 {[%clk 0:01:27]} 27. e4 {[%clk 0:00:47]}  Nd7 {[%clk 0:01:14]} 28. Nf1 {[%clk 0:00:38]}  Bb4+ {[%clk 0:01:14]} 29. Nd2 {[%clk 0:00:37]}  Nc5 {[%clk 0:01:14]} 30. Kf1 {[%clk 0:00:30]}  Bxd2 {[%clk 0:01:12]} 31. Rxd2 {[%clk 0:00:31]}  Nxb3 {[%clk 0:01:12]} 32. Rd1 {[%clk 0:00:30]}  Nc5 {[%clk 0:01:12]} 33. f4 {[%clk 0:00:29]}  Nxa4 {[%clk 0:00:58]} 34. Ba1 {[%clk 0:00:25]}  Nc5 {[%clk 0:00:51]} 35. fxe5 {[%clk 0:00:25]}  f5 {[%clk 0:00:51]} 36. exf5 {[%clk 0:00:23]}  gxf5 {[%clk 0:00:51]} 37. Bd4 {[%clk 0:00:20]}  a4 {[%clk 0:00:46]} 38. Bxc5 {[%clk 0:00:18]}  bxc5 {[%clk 0:00:47]} 39. Ra1 {[%clk 0:00:18]}  a3 {[%clk 0:00:47]} 40. Ke1 {[%clk 0:00:18]}  f4 {[%clk 0:00:42]} 41. Kd2 {[%clk 0:00:17]}  Bf5 {[%clk 0:00:42]} 42. Bd3 {[%clk 0:00:16]}  Bxd3 {[%clk 0:00:41]} 43. Kxd3 {[%clk 0:00:16]}  Ra4 {[%clk 0:00:40]} 44. Kc3 {[%clk 0:00:14]}  Kd7 {[%clk 0:00:40]} 45. Kb3 {[%clk 0:00:14]}  Ra8 {[%clk 0:00:40]} 46. Rd1+ {[%clk 0:00:13]}  Ke6 {[%clk 0:00:38]} 47. Ka2 {[%clk 0:00:13]}  Kxe5 {[%clk 0:00:38]} 48. Rd7 {[%clk 0:00:13]}  Rg8 {[%clk 0:00:30]} 49. Rxh7 {[%clk 0:00:12]}  Rxg2+ {[%clk 0:00:30]} 50. Kxa3 {[%clk 0:00:12]}  f3 {[%clk 0:00:30]} 51. Rh5+ {[%clk 0:00:11]}  Ke4 {[%clk 0:00:30]} 52. Rh6 {[%clk 0:00:11]}  f2 {[%clk 0:00:31]} 53. Rf6 {[%clk 0:00:10]}  Rg3+ {[%clk 0:00:31]} 54. Kb2 {[%clk 0:00:10]}  Rf3 {[%clk 0:00:32]} 0-1


[Site "https://www.chess.com"]

[Event "Titled Tuesday Blitz December 13 Early 2022"]
[White "Czopor, Maciej"]
[Black "Moroni, Luca Jr"]
[WhiteFideId "21805431"]
[BlackFideId "865834"]
[WhiteElo "2324"]
[BlackElo "2573"]
[Result "0-1"]
[Round "08"]
[TimeControl "180+1"]
[Date "2022.12.13"]
[WhiteClock "0:00:47"]
[BlackClock "0:01:10"]

1. c4 {[%clk 0:03:00]}  g6 {[%clk 0:03:00]} 2. Nc3 {[%clk 0:03:01]}  Bg7 {[%clk 0:03:00]} 3. d4 {[%clk 0:03:00]}  d6 {[%clk 0:03:00]} 4. e4 {[%clk 0:03:01]}  c5 {[%clk 0:03:01]} 5. d5 {[%clk 0:03:01]}  Bxc3+ {[%clk 0:03:02]} 6. bxc3 {[%clk 0:03:01]}  e5 {[%clk 0:03:03]} 7. h4 {[%clk 0:02:57]}  Qe7 {[%clk 0:02:49]} 8. Bd3 {[%clk 0:02:51]}  Kd7 {[%clk 0:02:49]} 9. a4 {[%clk 0:02:44]}  Kc7 {[%clk 0:02:49]} 10. a5 {[%clk 0:02:45]}  f5 {[%clk 0:02:48]} 11. f3 {[%clk 0:02:37]}  f4 {[%clk 0:02:48]} 12. Ne2 {[%clk 0:02:33]}  Nf6 {[%clk 0:02:48]} 13. g4 {[%clk 0:02:31]}  Nxg4 {[%clk 0:02:25]} 14. fxg4 {[%clk 0:02:28]}  Bxg4 {[%clk 0:02:26]} 15. Kf2 {[%clk 0:02:11]}  Nd7 {[%clk 0:02:20]} 16. Qb3 {[%clk 0:02:04]}  Nf6 {[%clk 0:02:18]} 17. Ng1 {[%clk 0:01:59]}  Rab8 {[%clk 0:02:02]} 18. Bd2 {[%clk 0:01:56]}  h6 {[%clk 0:01:45]} 19. Rb1 {[%clk 0:01:49]}  Bd7 {[%clk 0:01:37]} 20. Be2 {[%clk 0:01:45]}  Nxe4+ {[%clk 0:01:35]} 21. Ke1 {[%clk 0:01:46]}  Nxd2 {[%clk 0:01:31]} 22. Kxd2 {[%clk 0:01:47]}  e4 {[%clk 0:01:32]} 23. Nh3 {[%clk 0:01:42]}  g5 {[%clk 0:01:31]} 24. hxg5 {[%clk 0:01:22]}  f3 {[%clk 0:01:28]} 25. Bxf3 {[%clk 0:01:10]}  exf3 {[%clk 0:01:26]} 26. Rbe1 {[%clk 0:00:58]}  Qf7 {[%clk 0:01:23]} 27. Nf2 {[%clk 0:00:57]}  hxg5 {[%clk 0:01:18]} 28. Kc2 {[%clk 0:00:51]}  Rxh1 {[%clk 0:01:13]} 29. Rxh1 {[%clk 0:00:51]}  g4 {[%clk 0:01:14]} 30. Rg1 {[%clk 0:00:47]}  Qf4 {[%clk 0:01:10]} 0-1


[Site "https://www.chess.com"]

[Event "Titled Tuesday Blitz December 13 Early 2022"]
[White "D`Arruda, Ricardo D."]
[Black "Lauridsen, Jesper Morch"]
[WhiteFideId "100692"]
[BlackFideId "1401890"]
[WhiteElo "2434"]
[BlackElo "2288"]
[Result "1/2-1/2"]
[Round "08"]
[TimeControl "180+1"]
[Date "2022.12.14"]
[WhiteClock "0:00:24"]
[BlackClock "0:00:25"]

1. e4 {[%clk 0:02:49]}  c5 {[%clk 0:02:59]} 2. Nf3 {[%clk 0:02:48]}  e6 {[%clk 0:02:59]} 3. d4 {[%clk 0:02:47]}  cxd4 {[%clk 0:02:59]} 4. Nxd4 {[%clk 0:02:48]}  Nc6 {[%clk 0:03:00]} 5. Nc3 {[%clk 0:02:48]}  Qc7 {[%clk 0:03:00]} 6. Be3 {[%clk 0:02:47]}  a6 {[%clk 0:03:01]} 7. Be2 {[%clk 0:02:46]}  b5 {[%clk 0:03:00]} 8. a3 {[%clk 0:02:44]}  Nf6 {[%clk 0:02:58]} 9. O-O {[%clk 0:02:41]}  Bb7 {[%clk 0:02:50]} 10. f4 {[%clk 0:02:40]}  Bc5 {[%clk 0:02:49]} 11. e5 {[%clk 0:02:28]}  Qb6 {[%clk 0:02:30]} 12. exf6 {[%clk 0:02:28]}  Nxd4 {[%clk 0:02:26]} 13. Kh1 {[%clk 0:02:13]}  gxf6 {[%clk 0:02:11]} 14. b4 {[%clk 0:01:48]}  Nxe2 {[%clk 0:02:02]} 15. bxc5 {[%clk 0:01:42]}  Nxc3 {[%clk 0:02:00]} 16. cxb6 {[%clk 0:01:43]}  Nxd1 {[%clk 0:02:00]} 17. Rfxd1 {[%clk 0:01:39]}  Rg8 {[%clk 0:02:00]} 18. Rd2 {[%clk 0:01:39]}  Rc8 {[%clk 0:01:58]} 19. Kg1 {[%clk 0:01:34]}  d5 {[%clk 0:01:30]} 20. a4 {[%clk 0:01:25]}  bxa4 {[%clk 0:01:26]} 21. Rxa4 {[%clk 0:01:26]}  Rc6 {[%clk 0:01:10]} 22. Bd4 {[%clk 0:01:20]}  Ke7 {[%clk 0:01:10]} 23. c3 {[%clk 0:01:13]}  Rc4 {[%clk 0:01:05]} 24. Ra1 {[%clk 0:01:01]}  Rg6 {[%clk 0:00:50]} 25. g3 {[%clk 0:01:00]}  Kd6 {[%clk 0:00:47]} 26. Re2 {[%clk 0:00:59]}  h5 {[%clk 0:00:44]} 27. Kf2 {[%clk 0:00:57]}  h4 {[%clk 0:00:43]} 28. Re3 {[%clk 0:00:34]}  Rc8 {[%clk 0:00:41]} 29. Ra5 {[%clk 0:00:29]}  Re8 {[%clk 0:00:26]} 30. Bc5+ {[%clk 0:00:22]}  Kd7 {[%clk 0:00:26]} 31. Bd4 {[%clk 0:00:23]}  Kd6 {[%clk 0:00:26]} 32. Bc5+ {[%clk 0:00:23]}  Kd7 {[%clk 0:00:26]} 33. Bd4 {[%clk 0:00:24]}  Kd6 {[%clk 0:00:25]} 1/2-1/2


[Site "https://www.chess.com"]

[Event "Titled Tuesday Blitz December 13 Early 2022"]
[White "Daneshvar, Bardiya"]
[Black "Rakhmatullaev, Almas"]
[WhiteFideId "12576468"]
[BlackFideId "14205793"]
[WhiteElo "2429"]
[BlackElo "2221"]
[Result "1-0"]
[Round "08"]
[TimeControl "180+1"]
[Date "2022.12.13"]
[WhiteClock "0:00:11"]
[BlackClock "0:00:03"]

1. b3 {[%clk 0:02:57]}  d6 {[%clk 0:02:54]} 2. Bb2 {[%clk 0:02:56]}  Nf6 {[%clk 0:02:55]} 3. Nf3 {[%clk 0:02:56]}  g6 {[%clk 0:02:55]} 4. g3 {[%clk 0:02:57]}  Bg7 {[%clk 0:02:55]} 5. d4 {[%clk 0:02:57]}  O-O {[%clk 0:02:55]} 6. Bg2 {[%clk 0:02:58]}  Nbd7 {[%clk 0:02:51]} 7. O-O {[%clk 0:02:57]}  Rb8 {[%clk 0:02:51]} 8. Re1 {[%clk 0:02:56]}  b5 {[%clk 0:02:38]} 9. e4 {[%clk 0:02:56]}  e6 {[%clk 0:02:39]} 10. Nc3 {[%clk 0:02:52]}  a6 {[%clk 0:02:34]} 11. e5 {[%clk 0:02:49]}  Ne8 {[%clk 0:02:19]} 12. Ne4 {[%clk 0:02:43]}  Bb7 {[%clk 0:02:09]} 13. Qe2 {[%clk 0:02:38]}  Bxe4 {[%clk 0:01:42]} 14. Qxe4 {[%clk 0:02:39]}  d5 {[%clk 0:01:42]} 15. Qe3 {[%clk 0:02:35]}  Qe7 {[%clk 0:01:38]} 16. a4 {[%clk 0:02:29]}  b4 {[%clk 0:01:37]} 17. Bf1 {[%clk 0:02:21]}  a5 {[%clk 0:01:24]} 18. Bb5 {[%clk 0:02:20]}  Rb6 {[%clk 0:01:24]} 19. c4 {[%clk 0:02:14]}  dxc4 {[%clk 0:00:57]} 20. bxc4 {[%clk 0:01:56]}  c6 {[%clk 0:00:46]} 21. c5 {[%clk 0:01:56]}  cxb5 {[%clk 0:00:47]} 22. cxb6 {[%clk 0:01:57]}  bxa4 {[%clk 0:00:47]} 23. d5 {[%clk 0:01:41]}  a3 {[%clk 0:00:42]} 24. d6 {[%clk 0:01:38]}  Qd8 {[%clk 0:00:40]} 25. Bd4 {[%clk 0:01:38]}  Qa8 {[%clk 0:00:29]} 26. Nd2 {[%clk 0:01:24]}  Qd5 {[%clk 0:00:27]} 27. Ne4 {[%clk 0:01:12]}  Nxe5 {[%clk 0:00:19]} 28. Bxe5 {[%clk 0:01:09]}  Qxe5 {[%clk 0:00:15]} 29. d7 {[%clk 0:00:59]}  Nf6 {[%clk 0:00:13]} 30. Nxf6+ {[%clk 0:00:51]}  Qxf6 {[%clk 0:00:14]} 31. Rac1 {[%clk 0:00:47]}  a2 {[%clk 0:00:13]} 32. b7 {[%clk 0:00:43]}  a1=Q {[%clk 0:00:07]} 33. Rxa1 {[%clk 0:00:42]}  Qd8 {[%clk 0:00:05]} 34. Rad1 {[%clk 0:00:35]}  a4 {[%clk 0:00:04]} 35. Qa7 {[%clk 0:00:27]}  Bf6 {[%clk 0:00:04]} 36. Qxa4 {[%clk 0:00:25]}  Qb6 {[%clk 0:00:04]} 37. Rb1 {[%clk 0:00:19]}  Bc3 {[%clk 0:00:02]} 38. Red1 {[%clk 0:00:18]}  Rd8 {[%clk 0:00:02]} 39. Qa8 {[%clk 0:00:14]}  Kg7 {[%clk 0:00:02]} 40. Qxd8 {[%clk 0:00:14]}  Qxd8 {[%clk 0:00:03]} 41. b8=Q {[%clk 0:00:14]}  Qxb8 {[%clk 0:00:03]} 42. d8=Q {[%clk 0:00:15]}  Qb5 {[%clk 0:00:03]} 43. Qd3 {[%clk 0:00:15]}  Qc5 {[%clk 0:00:03]} 44. Rb3 {[%clk 0:00:15]}  Bf6 {[%clk 0:00:03]} 45. Qd2 {[%clk 0:00:14]}  Bc3 {[%clk 0:00:02]} 46. Rxc3 {[%clk 0:00:11]}  bxc3 {[%clk 0:00:03]} 47. Qc2 {[%clk 0:00:11]}  e5 {[%clk 0:00:03]} 48. Rc1 {[%clk 0:00:11]} 1-0


[Site "https://www.chess.com"]